bitfinex/quotes_ETHUSD_20250807
["timestamp","ask_amount","ask_price","bid_price","bid_amount"]
[1754596864660,3.0,3873.8,3873.0,0.8165]
[1754596864859,3.0,3873.8,3873.0,2.58193479]
[1754596865273,0.7645,3873.7,3873.0,2.58193479]
[1754596865474,0.1288,3873.1,3872.7,0.8165]
[1754596865675,0.7645,3873.7,3873.2,2.58180873]
[1754596865887,3.55,3873.3,3872.5,2.58225898]
[1754596866086,8.4215,3873.3,3872.5,2.58226199]
[1754596866571,3.34637349,3873.2,3872.4,0.001]
[1754596866779,3.34637349,3873.2,3872.4,2.5833618]
[1754596866780,0.7645,3873.2,3872.4,2.5833618]
[1754596866962,0.7645,3873.2,3872.4,0.001]
[1754596867356,3.0,3873.0,3872.4,0.001]
[1754596867580,0.7645,3873.2,3872.4,2.58331827]
[1754596867742,3.7645,3873.2,3872.4,2.58331827]
[1754596867939,3.7645,3873.5,3872.4,0.001]
[1754596868195,3.0,3873.3,3872.7,2.58217194]
[1754596868339,3.0,3873.3,3872.4,0.001]
[1754596868544,3.0,3873.3,3872.4,2.58337107]
[1754596868755,3.0,3873.3,3872.7,2.58216242]
[1754596868974,3.0,3873.3,3872.4,0.001]
[1754596869154,3.0,3873.3,3872.8,2.58205307]
[1754596869350,3.0,3873.3,3872.7,2.58215809]
[1754596869676,0.79677305,3873.2,3872.4,0.001]
[1754596869977,0.7645,3873.2,3872.5,2.58230115]
[1754596870142,2.5813113,3874.0,3872.4,0.001]
[1754596870348,0.55,3873.7,3872.8,2.58206582]
[1754596870548,3.0,3873.1,3872.4,0.001]
[1754596870743,4.107,3873.0,3872.4,0.0049]
[1754596870973,4.107,3873.0,3872.5,2.58229858]
[1754596871153,4.8715,3873.0,3872.4,2.58726013]
[1754596871358,4.8715,3873.0,3872.5,2.58231116]
[1754596871590,4.8715,3873.0,3872.4,2.58725972]
[1754596871790,4.8715,3873.0,3872.5,2.58230559]
[1754596872275,0.7645,3872.9,3872.4,0.0049]
[1754596872446,3.7645,3872.9,3872.4,0.0049]
[1754596872644,0.79677638,3872.8,3872.4,0.0049]
[1754596872851,1.0061,3872.8,3872.4,0.0049]
[1754596873049,1.1,3872.5,3872.4,0.0049]
[1754596873448,4.8645,3872.5,3872.4,0.0049]
[1754596874506,7.72069004,3872.5,3872.4,0.0049]
[1754596874653,7.68841116,3872.5,3872.4,0.0049]
[1754596875168,11.79441116,3872.5,3872.4,0.0049]
[1754596875782,12.34441116,3872.5,3872.4,0.0049]
[1754596875988,12.47321116,3872.5,3872.4,0.0049]
[1754596876180,12.23161116,3872.5,3872.4,0.0049]
[1754596876452,12.47321116,3872.5,3872.4,0.0049]
[1754596877403,8.3348,3872.5,3872.4,0.0049]
[1754596877611,10.91711116,3872.5,3872.4,0.0049]
[1754596877907,11.68161116,3872.5,3872.4,0.0049]
[1754596878262,12.47321116,3872.5,3872.4,0.0049]
[1754596878573,8.36721116,3872.5,3872.4,0.0049]
[1754596878774,12.47321116,3872.5,3872.4,0.0049]
[1754596879999,4.2288,3872.5,3872.4,0.0049]
[1754596880210,8.3348,3872.5,3872.4,0.0049]
[1754596880610,4.2288,3872.5,3872.4,0.0049]
[1754596880913,8.3348,3872.5,3872.4,0.0049]
[1754596881088,4.1,3872.5,3872.4,0.0049]
[1754596881415,8.3348,3872.5,3872.4,0.0049]
[1754596881727,10.91711116,3872.5,3872.4,0.0049]
[1754596882327,8.3348,3872.5,3872.4,0.0049]
[1754596883033,11.68161116,3872.5,3872.4,0.0049]
[1754596885533,12.23161116,3872.5,3872.4,0.0049]
[1754596886201,7.36111116,3872.5,3872.4,0.0049]
[1754596886708,11.46711116,3872.5,3872.4,0.0049]
[1754596887449,8.8848,3872.5,3872.4,0.0049]
[1754596887603,11.46711116,3872.5,3872.4,0.0049]
[1754596888438,12.23011116,3872.5,3872.4,0.0049]
[1754596889130,12.47171116,3872.5,3872.4,0.0049]
[1754596889571,12.23011116,3872.5,3872.4,0.0049]
[1754596891528,4.2288,3872.5,3872.4,1.2903]
[1754596891728,8.3338,3872.5,3872.4,1.2903]
[1754596892761,8.3338,3872.5,3872.4,0.0049]
[1754596892925,10.91611116,3872.5,3872.4,0.0049]
[1754596893257,8.3338,3872.5,3872.4,0.0049]
[1754596893553,10.91611116,3872.5,3872.4,0.0049]
[1754596894079,12.22911116,3872.5,3872.4,0.0049]
[1754596894716,11.46611116,3872.5,3872.4,0.0049]
[1754596895372,12.22911116,3872.5,3872.4,0.0049]
[1754596895732,12.22911116,3872.5,3872.4,0.00082182]
[1754596896074,12.47071116,3872.5,3872.4,0.00082182]
[1754596896875,12.22911116,3872.5,3872.4,0.00082182]
[1754596897974,12.22911116,3872.5,3872.4,2.182e-05]
[1754596897975,12.47071116,3872.5,3872.4,2.182e-05]
[1754596899027,12.47071116,3872.5,3872.0,0.001]
[1754596899028,0.55,3872.1,3872.0,0.001]
[1754596899233,23.04171859,3872.1,3872.0,0.001]
[1754596899434,24.01403637,3872.1,3872.0,0.001]
[1754596899861,6.13291145,3871.6,3871.1,0.04]
[1754596900165,23.1385699,3871.6,3871.1,0.04]
[1754596900365,7.654,3871.6,3871.1,0.04]
[1754596900531,9.81571145,3871.6,3871.1,0.04]
[1754596900731,10.36571145,3871.6,3871.1,0.5017]
[1754596901356,10.36571145,3871.6,3871.1,0.04]
[1754596901561,11.12871145,3871.6,3871.1,0.04]
[1754596901764,11.23224745,3871.6,3871.1,0.04]
[1754596901969,11.33124745,3871.6,3871.1,0.04]
[1754596902167,11.52426773,3871.6,3871.1,0.04]
[1754596902529,6.13311161,3871.3,3871.1,0.04]
[1754596902735,10.36591161,3871.3,3871.1,0.04]
[1754596903134,11.12891161,3871.3,3871.1,0.04]
[1754596903366,11.22791161,3871.3,3871.1,0.04]
[1754596904373,11.33145661,3871.3,3871.1,0.04]
[1754596904555,11.33145661,3871.3,3871.0,0.001]
[1754596904556,6.13317834,3871.2,3871.0,0.001]
[1754596904760,18.35630373,3870.8,3870.7,0.001]
[1754596904961,23.13910373,3870.8,3870.7,0.001]
[1754596905660,23.90210373,3870.8,3870.7,0.001]
[1754596906370,24.00110373,3870.8,3870.7,0.001]
[1754596906576,3.13362922,3870.6,3870.3,1e-08]
[1754596906748,6.13371227,3870.4,3870.3,1e-08]
[1754596906951,6.26251227,3870.4,3870.3,1e-08]
[1754596907269,7.02551227,3870.4,3870.3,1e-08]
[1754596907973,6.13384579,3870.2,3870.1,0.04]
[1754596908169,10.23784579,3870.2,3870.1,0.04]
[1754596908370,10.36664579,3870.2,3870.1,0.04]
[1754596909271,18.90670424,3870.2,3870.1,0.04]
[1754596909651,5.58384579,3870.2,3870.1,1.3254]
[1754596909964,7.23684579,3870.2,3870.1,1.3254]
[1754596910160,6.13384579,3870.2,3870.1,1.3254]
[1754596910361,6.13384579,3870.2,3870.1,0.04]
[1754596910562,10.23784579,3870.2,3870.1,1.3254]
[1754596911276,10.23784579,3870.2,3870.1,0.04]
[1754596911451,6.13384579,3870.2,3870.1,0.04]
[1754596911651,10.23684579,3870.2,3870.1,0.04]
[1754596912575,10.69854579,3870.2,3870.1,0.04]
[1754596912787,11.46154579,3870.2,3870.1,0.04]
[1754596913397,18.90697132,3869.8,3869.7,0.001]
[1754596913684,23.00997132,3869.8,3869.7,0.001]
[1754596913888,3.13424643,3869.6,3869.5,0.001]
[1754596914047,16.44424643,3869.6,3869.5,0.001]
[1754596915377,17.50169698,3869.6,3869.5,0.001]
[1754596916076,6.13458039,3869.1,3869.0,0.001]
[1754596916292,10.23758039,3869.1,3869.0,0.001]
[1754596917478,18.90763926,3868.8,3868.4,0.4617]
[1754596917645,23.01063926,3868.8,3868.4,0.4617]
[1754596917846,23.77363926,3868.8,3868.1,0.5027]
[1754596918367,23.01063926,3868.8,3868.1,0.5027]
[1754596918678,23.01063926,3868.8,3868.1,1.298]
[1754596919971,23.14023926,3868.8,3868.1,1.298]
[1754596921277,3.13518173,3868.2,3868.1,0.041]
[1754596921499,23.17295495,3868.2,3868.1,0.041]
[1754596921677,23.14064018,3868.2,3868.1,0.041]
[1754596922187,3.13544909,3867.8,3867.1,0.8353]
[1754596922370,16.6093672,3867.8,3867.5,0.001]
[1754596922684,16.6093672,3867.8,3866.6,1.2636]
[1754596922685,3.1361846,3866.7,3866.6,1.2636]
[1754596922982,3.1361846,3866.7,3866.1,0.04]
[1754596922984,3.0,3866.6,3866.1,0.04]
[1754596923280,3.0,3866.2,3866.1,0.04]
[1754596923481,4.103,3866.2,3866.1,0.04]
[1754596923782,7.103,3866.2,3866.1,0.04]
[1754596923995,0.103655,3867.9,3866.1,3.89018596]
[1754596923996,0.19789709,3867.6,3866.1,3.89018596]
[1754596924144,3.0,3867.2,3866.2,1.2636]
[1754596924348,3.0,3867.2,3866.3,1.2636]
[1754596924555,6.209,3867.8,3866.4,1.2636]
[1754596924556,3.628,3867.1,3866.4,1.2636]
[1754596924783,6.209,3867.8,3866.5,1.2636]
[1754596924982,6.209,3867.8,3866.6,1.2636]
[1754596924983,3.0,3866.9,3866.6,1.2636]
[1754596925158,3.0,3866.7,3866.1,0.04]
[1754596925383,4.103,3866.6,3866.1,0.04]
[1754596925594,4.103,3866.5,3866.4,2.58638526]
[1754596925902,3.0,3867.7,3866.8,2.5860958]
[1754596926105,3.0,3867.5,3866.9,3.84964481]
[1754596926306,3.0,3867.7,3866.9,2.58604481]
[1754596926606,3.0,3867.7,3866.7,2.58618369]
[1754596926607,3.0,3867.5,3867.0,3.84957112]
[1754596926908,3.0,3867.5,3866.1,0.04]
[1754596926909,3.0,3867.3,3867.1,3.84946261]
[1754596927083,3.0,3867.3,3867.2,3.84945022]
[1754596927284,7.103,3867.3,3867.2,3.84945022]
[1754596927479,7.103,3867.3,3867.2,1.2636]
[1754596928371,3.0,3867.3,3867.2,1.2636]
[1754596928723,7.103,3867.3,3867.2,1.2636]
[1754596929272,7.103,3867.3,3867.2,0.7953]
[1754596929491,9.68878336,3867.3,3867.2,0.7953]
[1754596929678,7.103,3867.3,3867.2,0.7953]
[1754596930293,9.68878336,3867.3,3867.2,0.7953]
[1754596930506,7.103,3867.3,3867.2,0.7953]
[1754596931085,9.68878336,3867.3,3867.2,0.7953]
[1754596931484,2.58589365,3867.2,3866.8,0.7953]
[1754596931688,2.58617394,3866.8,3866.3,0.7953]
[1754596931889,4.103,3866.7,3866.4,1.2636]
[1754596932212,2.31414515,3868.3,3866.5,1.2636]
[1754596932416,4.103,3867.7,3866.6,1.2636]
[1754596932636,2.58499366,3868.5,3867.6,2.58558279]
[1754596932781,5.55394836,3869.2,3866.1,12.81385845]
[1754596932782,6.211,3869.3,3867.7,0.4683]
[1754596933107,0.1296,3867.9,3867.8,3.38074909]
[1754596933310,4.2326,3867.9,3867.8,3.84904909]
[1754596933895,0.1296,3867.9,3867.8,3.84904909]
[1754596935384,0.04,3868.9,3868.5,2.5849598]
[1754596935580,0.1296,3868.4,3868.2,2.58512913]
[1754596935901,0.1296,3868.4,3868.3,3.8486579]
[1754596936291,0.1296,3868.4,3868.3,3.8487149]
[1754596936499,4.2316,3868.4,3868.3,3.8487149]
[1754596937437,4.2316,3868.4,3868.3,1.2636]
[1754596937652,4.2316,3868.4,3868.3,0.7953]
[1754596938221,4.2316,3868.4,3868.0,2.58531169]
[1754596938425,4.102,3868.4,3868.1,3.38053472]
[1754596938623,4.102,3868.4,3868.1,3.05353472]
[1754596938789,4.102,3868.4,3868.2,3.38046315]
[1754596939120,0.1296,3868.2,3868.1,0.4683]
[1754596939308,0.1296,3868.2,3868.1,3.05354857]
[1754596939713,0.1296,3868.2,3868.1,3.84884857]
[1754596940132,0.04,3868.9,3868.5,2.58492584]
[1754596940343,3.0,3868.7,3868.2,0.4683]
[1754596940501,3.0,3868.7,3868.3,3.84866515]
[1754596940502,0.1296,3868.4,3868.3,3.84866515]
[1754596940702,4.2306,3868.4,3868.3,3.84866515]
[1754596941822,4.2306,3868.4,3868.3,0.7953]
[1754596942302,4.2306,3868.4,3868.3,3.8487149]
[1754596942693,4.2306,3868.4,3868.3,3.3804149]
[1754596943490,4.2306,3868.4,3868.3,3.8487149]
[1754596944031,4.2306,3868.4,3868.3,0.7953]
[1754596944264,4.2306,3868.4,3868.0,3.38059577]
[1754596944430,4.101,3868.4,3868.2,2.58513125]
[1754596944762,4.101,3868.4,3868.3,3.3804149]
[1754596945066,4.2306,3868.4,3868.3,0.7953]
[1754596945569,4.2306,3868.4,3868.3,3.3804149]
[1754596945730,5.3306,3868.4,3868.3,0.7953]
[1754596946131,5.3306,3868.4,3868.2,2.58516062]
[1754596946332,5.3306,3868.4,3867.9,0.7953]
[1754596946563,5.201,3868.4,3868.2,2.58513296]
[1754596946960,0.1296,3868.3,3868.2,2.58513296]
[1754596947462,0.1296,3868.3,3868.2,3.38043296]
[1754596947781,4.2286,3868.3,3868.2,3.84873296]
[1754596947925,4.2286,3868.3,3868.2,0.7953]
[1754596948291,2.58518173,3868.2,3867.5,0.1296]
[1754596948463,0.0323156,3868.1,3867.3,0.7801]
[1754596948631,3.0,3868.2,3867.3,0.7801]
[1754596948831,0.0323156,3868.1,3867.3,0.7801]
[1754596949155,0.7554,3868.0,3867.4,2.58569581]
[1754596949351,4.099,3867.9,3867.4,2.58565362]
[1754596949549,4.099,3867.9,3867.3,0.7801]
[1754596949550,4.099,3867.9,3867.5,2.58564964]
[1754596949749,4.099,3867.9,3867.4,2.58569121]
[1754596950062,4.099,3867.9,3867.5,2.58564961]
[1754596950464,4.1,3868.4,3867.6,0.7791]
[1754596950759,3.0,3868.2,3867.6,0.7791]
[1754596951059,3.0,3868.2,3867.3,0.001]
[1754596951060,2.61757367,3868.1,3867.3,0.001]
[1754596951361,4.2132,3868.1,3867.3,0.001]
[1754596951563,2.58533681,3868.0,3867.3,0.001]
[1754596951743,3.0,3867.8,3867.3,0.001]
[1754596952165,2.58512305,3868.3,3867.5,2.58558829]
[1754596952166,0.7554,3868.3,3867.5,2.58558829]
[1754596952330,4.099,3868.2,3867.4,3.3648109]
[1754596952651,3.0,3868.0,3867.4,0.7791]
[1754596952849,1.5598,3868.4,3867.5,2.58564964]
[1754596953049,3.0,3868.2,3867.3,0.4436]
[1754596953240,1.102,3868.4,3867.6,0.7791]
[1754596953445,4.099,3868.1,3867.7,0.4426]
[1754596953657,4.099,3868.0,3867.9,2.58531577]
[1754596953867,4.099,3868.0,3867.9,3.80701577]
[1754596955173,1.102,3868.4,3868.1,2.58522521]
[1754596955337,4.098,3868.3,3868.1,2.58522521]
[1754596955659,4.098,3868.3,3868.2,2.58518173]
[1754596955860,1.102,3868.4,3868.3,2.5851149]
[1754596956069,5.2,3868.4,3868.2,3.36425855]
[1754596956561,5.2,3868.4,3868.2,3.36427088]
[1754596956763,4.098,3868.3,3868.2,0.7791]
[1754596957368,4.098,3868.3,3868.1,2.58519936]
[1754596957736,4.098,3868.3,3868.2,2.58518173]
[1754596957932,4.098,3868.3,3868.1,3.36434819]
[1754596958259,4.098,3868.3,3868.2,2.58518173]
[1754596958462,4.2276,3868.3,3868.2,2.58518173]
[1754596958660,4.2276,3868.3,3868.1,3.36433104]
[1754596959067,4.2276,3868.3,3868.1,2.58524807]
[1754596959289,4.2276,3868.3,3868.0,2.58530711]
[1754596959484,4.098,3868.3,3867.8,3.3644878]
[1754596959665,1.2132,3868.2,3867.9,2.58537666]
[1754596959860,1.2132,3868.2,3867.4,0.7791]
[1754596959861,0.1296,3867.8,3867.4,0.7791]
[1754596960087,4.097,3867.7,3867.6,2.58558279]
[1754596960487,4.097,3867.7,3867.6,3.36468279]
[1754596961967,0.1296,3867.8,3867.7,2.58551593]
[1754596962300,1.102,3868.4,3867.7,2.58551593]
[1754596962301,0.002,3868.4,3868.3,2.5851149]
[1754596962595,0.002,3868.8,3868.7,2.58484762]
[1754596963203,0.002,3868.8,3868.7,3.49354762]
[1754596963383,0.002,3868.8,3868.7,3.36394762]
[1754596963884,4.098,3868.8,3868.7,2.58484762]
[1754596964792,0.002,3868.8,3868.7,2.58484762]
[1754596965087,0.002,3868.8,3868.7,3.80654762]
[1754596965858,0.002,3868.8,3868.7,4.04394585]
[1754596966365,0.002,3868.8,3868.7,8.13994585]
[1754596967290,1e-08,3868.8,3868.7,8.13994585]
[1754596967496,1e-08,3868.8,3868.7,11.13994585]
[1754596967924,0.002,3869.2,3868.7,11.13994585]
[1754596967925,0.002,3869.2,3869.1,2.58458039]
[1754596968423,0.002,3869.2,3869.1,4.04336484]
[1754596968627,0.002,3869.2,3869.1,4.17296484]
[1754596968924,0.002,3869.2,3869.1,3.93588039]
[1754596969424,0.002,3869.2,3869.1,4.17286447]
[1754596970312,0.002,3869.2,3869.1,3.93588039]
[1754596970521,0.002,3869.2,3869.1,4.17274183]
[1754596971001,0.002,3869.2,3869.1,4.17276209]
[1754596971199,0.002,3869.2,3869.1,3.93588039]
[1754596972730,1e-08,3869.2,3869.1,3.83588039]
[1754596973431,1e-08,3869.2,3869.1,4.07251489]
[1754596975319,1e-08,3869.2,3869.1,3.83588039]
[1754596976051,1e-08,3869.2,3869.1,4.07237343]
[1754596976254,1e-08,3869.2,3869.1,3.83588039]
[1754596976554,1e-08,3869.2,3869.1,4.07230977]
[1754596976756,1e-08,3869.2,3869.1,3.83588039]
[1754596977061,1e-08,3869.2,3869.1,4.07228893]
[1754596977238,1e-08,3869.2,3869.1,3.83588039]
[1754596977557,1e-08,3869.2,3869.1,4.07222476]
[1754596978930,1e-08,3869.2,3869.1,3.39328039]
[1754596979329,1e-08,3869.2,3869.1,6.94247722]
[1754596979630,1e-08,3869.2,3869.1,6.70618039]
[1754596980253,1e-08,3869.2,3869.1,2.61418039]
[1754596980455,1.22710001,3869.2,3869.1,2.61418039]
[1754596980667,1e-08,3869.2,3869.1,2.48458039]
[1754596980833,1e-08,3869.2,3869.1,6.57558039]
[1754596981033,1e-08,3869.2,3869.1,7.88328039]
[1754596981656,1.22710001,3869.2,3869.1,6.57558039]
[1754596982072,1.22710001,3869.2,3869.1,2.48458039]
[1754596983556,1.22710001,3869.2,3868.1,2.58518781]
[1754596983557,1.35670001,3869.2,3868.1,2.58518781]
[1754596983886,0.1296,3868.5,3868.4,2.58504808]
[1754596984259,1.3567,3868.5,3868.4,2.58504808]
[1754596984991,1.3567,3868.5,3868.3,2.58505649]
[1754596985167,1.3567,3868.5,3868.0,6.67631042]
[1754596985168,1e-08,3869.2,3868.4,2.5850265]
[1754596985344,1e-08,3869.2,3868.5,2.58497952]
[1754596985743,0.1296,3868.6,3868.4,2.58503764]
[1754596985950,1.2271,3868.5,3868.4,2.58503764]
[1754596986177,1.2271,3868.5,3868.4,2.58504808]
[1754596986378,1e-08,3869.2,3868.0,2.5853154]
[1754596986577,0.79730001,3869.2,3868.2,0.7467]
[1754596986792,0.1296,3869.0,3868.4,2.71464247]
[1754596987080,1.3567,3869.0,3868.9,2.584714]
[1754596988088,0.1296,3869.0,3868.9,2.584714]
[1754596988277,1e-08,3869.2,3869.1,2.58458039]
[1754596989581,1e-08,3869.2,3869.1,3.33128039]
[1754596989786,1e-08,3869.2,3869.1,3.89228039]
[1754596990584,1e-08,3869.2,3869.1,4.44228039]
[1754596990820,0.002,3870.0,3869.1,4.44228039]
[1754596990821,1e-08,3870.0,3869.9,2.58404609]
[1754596991128,1e-08,3870.6,3870.5,2.58364552]
[1754596991423,1e-08,3870.6,3870.5,6.80244552]
[1754596991627,1e-08,3870.6,3870.5,7.98054552]
[1754596991793,1e-08,3870.6,3870.5,2.58364552]
[1754596992608,1e-08,3870.6,3870.5,3.5672002]
[1754596992831,1e-08,3870.6,3870.5,3.33034552]
[1754596992987,1e-08,3870.6,3870.5,2.58364552]
[1754596995529,1e-08,3870.6,3870.5,3.33034552]
[1754596995721,1e-08,3870.6,3870.5,7.41834552]
[1754596997507,0.04,3872.9,3870.9,2.58337854]
[1754596997704,0.4298,3872.4,3871.3,2.58311161]
[1754596997941,1.2271,3872.4,3871.7,2.58284474]
[1754596999540,0.7973,3872.2,3871.7,2.58284474]
[1754596999922,0.4298,3872.0,3871.7,2.58284474]
[1754597000120,1.2291,3871.8,3871.7,2.58284474]
[1754597000516,0.002,3871.8,3871.7,2.58284474]
[1754597002215,0.002,3871.8,3871.7,7.97574474]
[1754597003021,0.002,3871.8,3871.7,7.54434474]
[1754597003254,1e-08,3871.8,3871.7,7.54434474]
[1754597003549,1e-08,3871.8,3871.7,7.97574474]
[1754597008042,1e-08,3871.8,3871.7,7.54434474]
[1754597008346,1e-08,3871.8,3871.7,7.97304474]
[1754597009126,1e-08,3871.8,3871.7,2.71164474]
[1754597009534,1.22410001,3871.8,3871.7,2.58284474]
[1754597010027,1.22410001,3871.8,3871.1,6.66720096]
[1754597010028,1.22410001,3871.8,3871.1,4.2128]
[1754597010239,1.2241,3871.7,3871.6,2.58289172]
[1754597010850,1.3529,3871.7,3871.6,2.58289172]
[1754597011863,1.3529,3871.7,3871.5,2.58297135]
[1754597012074,1.3529,3871.7,3870.0,2.58394213]
[1754597012075,1.2241,3871.6,3869.9,6.205]
[1754597012237,1.2241,3871.5,3870.7,0.1288]
[1754597012434,1e-08,3871.8,3870.2,4.2118]
[1754597012435,0.1288,3870.8,3870.2,4.2118]
[1754597012663,0.1288,3870.8,3870.7,2.58351202]
[1754597012664,0.9131,3870.8,3870.7,2.58351202]
[1754597013239,1.3529,3870.8,3870.7,2.58351202]
[1754597013752,0.4398,3871.6,3871.5,2.58297817]
[1754597014062,0.5686,3871.6,3871.5,2.58297817]
[1754597014386,1.3529,3871.6,3871.5,2.58297817]
[1754597015085,1e-08,3871.8,3871.7,2.58284474]
[1754597015386,1e-08,3871.8,3871.7,6.66584474]
[1754597015887,1.22410001,3871.8,3871.7,2.58284474]
[1754597016086,1.22410001,3871.8,3870.6,4.083]
[1754597016290,1.2241,3871.7,3870.4,4.083]
[1754597016493,1e-08,3871.8,3871.1,2.58320118]
[1754597016661,1.2241,3871.6,3870.4,4.083]
[1754597016990,4.2241,3871.5,3870.5,2.58364552]
[1754597017167,1.25638806,3871.4,3870.6,2.58356278]
[1754597017488,1.25638889,3871.3,3870.6,2.58357877]
[1754597017668,1.2241,3871.2,3870.6,2.58357877]
[1754597018056,1e-08,3871.8,3870.5,0.001]
[1754597018057,1.2241,3871.1,3870.5,0.001]
[1754597018264,1.25639139,3871.0,3870.5,0.001]
[1754597018687,2.61560798,3871.0,3870.5,0.001]
[1754597018880,1.2241,3870.9,3870.5,0.001]
[1754597019268,0.03229139,3871.0,3870.5,0.001]
[1754597019269,1.2241,3870.8,3870.5,0.001]
[1754597019493,1.2241,3870.8,3870.7,0.001]
[1754597019689,0.03229056,3871.1,3870.7,0.001]
[1754597019892,3.0,3871.2,3870.7,0.001]
[1754597020098,5.58317907,3871.2,3870.7,0.001]
[1754597020297,1.2241,3871.0,3870.7,0.001]
[1754597020680,4.082,3871.1,3870.7,0.001]
[1754597020681,1.2241,3870.9,3870.7,0.001]
[1754597021112,1.2241,3870.8,3870.7,0.001]
[1754597022594,3.80754528,3870.8,3870.7,0.001]
[1754597022910,1.2241,3870.8,3870.7,0.001]
[1754597023291,3.80754528,3870.8,3870.7,0.001]
[1754597023481,7.35754528,3870.8,3870.7,0.001]
[1754597024112,7.35754528,3870.8,3870.7,1.291e-05]
[1754597024994,7.48634528,3870.8,3870.7,1.291e-05]
[1754597025193,7.72727734,3870.8,3870.7,1.291e-05]
[1754597026417,3.24093206,3870.8,3870.7,1.291e-05]
[1754597026602,8.67583206,3870.8,3870.7,1.291e-05]
[1754597029052,11.25927734,3870.8,3870.7,1.291e-05]
[1754597029267,11.80927734,3870.8,3870.7,1.291e-05]
[1754597031337,7.72727734,3870.8,3870.7,1.291e-05]
[1754597031537,11.80827734,3870.8,3870.7,1.291e-05]
[1754597032349,11.56734528,3870.8,3870.7,1.291e-05]
[1754597032669,11.80785298,3870.8,3870.7,1.291e-05]
[1754597032878,7.72685298,3870.8,3870.7,1.291e-05]
[1754597033051,11.80785298,3870.8,3870.7,1.291e-05]
[1754597033871,11.25785298,3870.8,3870.7,1.291e-05]
[1754597034166,11.80785298,3870.8,3870.7,1.291e-05]
[1754597035089,11.80685298,3870.8,3870.7,1.291e-05]
[1754597035583,11.80693345,3870.8,3870.7,1.291e-05]
[1754597036783,3.13357877,3870.6,3870.5,0.001]
[1754597036949,6.40646167,3870.6,3870.5,0.001]
[1754597037270,6.40646167,3870.6,3870.5,1.307e-05]
[1754597037271,7.72706694,3870.6,3870.5,1.307e-05]
[1754597037468,7.17706694,3870.6,3870.5,1.307e-05]
[1754597037837,7.72706694,3870.6,3870.5,1.307e-05]
[1754597038051,11.80706694,3870.6,3870.5,1.307e-05]
[1754597039162,0.24058817,3870.6,3870.5,1.307e-05]
[1754597039471,5.82240858,3872.1,3870.5,1.307e-05]
[1754597039472,0.24058817,3870.7,3870.6,2.58357877]
[1754597039665,4.082,3870.8,3870.6,1.2194]
[1754597039865,4.32058817,3870.7,3870.5,1.307e-05]
[1754597040064,3.40646167,3870.6,3870.5,1.307e-05]
[1754597040265,4.58096167,3870.6,3870.5,1.307e-05]
[1754597040845,4.3403735,3870.6,3870.5,1.307e-05]
[1754597041047,4.5813029,3870.6,3870.5,1.307e-05]
[1754597041269,0.7909294,3870.6,3870.5,1.307e-05]
[1754597041471,4.3209294,3870.6,3870.5,0.77111307]
[1754597041685,4.3209294,3870.6,3870.5,1.307e-05]
[1754597042059,6.9368029,3870.6,3870.5,1.307e-05]
[1754597042259,6.90450817,3870.6,3870.5,1.307e-05]
[1754597042457,8.62900817,3870.6,3870.5,1.307e-05]
[1754597042660,7.45450817,3870.6,3870.5,1.307e-05]
[1754597042962,4.3199294,3870.6,3870.5,1.307e-05]
[1754597043373,6.90350817,3870.6,3870.5,1.307e-05]
[1754597043745,7.68007617,3870.6,3870.5,1.307e-05]
[1754597045185,1.0174974,3870.6,3870.5,1.307e-05]
[1754597045349,4.3199294,3870.6,3870.5,0.77111307]
[1754597046486,5.4944294,3870.6,3870.1,0.001]
[1754597046677,5.58384579,3870.2,3870.1,0.001]
[1754597046858,10.45377519,3870.2,3870.1,0.001]
[1754597047060,11.62827519,3870.2,3870.1,0.001]
[1754597047261,11.73183719,3870.2,3870.1,1.318e-05]
[1754597048056,6.13393414,3870.1,3869.7,0.001]
[1754597050691,11.86153794,3869.8,3869.7,0.001]
[1754597050989,2.58424643,3869.6,3869.5,0.001]
[1754597051288,10.61590458,3869.6,3869.5,0.001]
[1754597051491,11.7581015,3869.6,3869.5,0.001]
[1754597052356,24.53095995,3869.6,3869.5,0.001]
[1754597053159,24.72964703,3869.6,3869.5,5.981e-05]
[1754597054178,24.72964703,3869.6,3869.1,0.041]
[1754597054179,2.58451359,3869.2,3869.1,0.00272481]
[1754597054391,9.93657507,3869.2,3869.1,0.00272481]
[1754597054700,11.20836866,3869.2,3869.1,0.00272481]
[1754597055365,7.13036866,3869.2,3869.1,0.00272481]
[1754597055572,11.20836866,3869.2,3869.1,0.00272481]
[1754597056092,11.75836866,3869.2,3869.1,0.00272481]
[1754597057254,11.75836866,3869.2,3869.1,0.000189]
[1754597057693,11.86196866,3869.2,3869.1,0.000189]
[1754597057897,11.86196866,3869.2,3867.9,0.7721]
[1754597057898,5.5857165,3867.4,3867.3,0.001]
[1754597058095,9.6637165,3867.4,3867.3,0.001]
[1754597058299,9.6637165,3867.4,3867.3,1.2204]
[1754597058300,7.31914195,3867.4,3867.3,1.2204]
[1754597058603,8.09632495,3867.4,3867.3,1.2204]
[1754597058900,10.68191575,3867.4,3867.3,1.2204]
[1754597059099,10.68191575,3867.4,3867.3,0.7721]
[1754597059301,4.01819925,3867.4,3867.3,0.7721]
[1754597059506,8.09619925,3867.4,3867.3,1.2204]
[1754597059671,4.01819925,3867.4,3867.3,1.2204]
[1754597059871,8.09619925,3867.4,3867.3,1.2204]
[1754597060714,4.01819925,3867.4,3867.3,3.80618336]
[1754597060893,0.24101625,3867.4,3867.3,3.80618336]
[1754597061103,4.31866868,3867.4,3867.3,3.80618336]
[1754597061415,4.31866868,3867.4,3867.3,1.2204]
[1754597061614,4.31866868,3867.4,3867.3,3.80618336]
[1754597061805,4.31866868,3867.4,3867.3,0.001]
[1754597062005,7.86866868,3867.4,3867.3,0.001]
[1754597062206,10.45438518,3867.4,3867.3,0.001]
[1754597062595,11.62888518,3867.4,3867.3,0.001]
[1754597062795,10.45438518,3867.4,3867.3,0.001]